[Event "Titled Tuesday Blitz April 11 Late 2023"]
[White "Papayan, Oleg"]
[Black "Zampronha, Wladimir Camilo"]
[WhiteFideId "4193911"]
[BlackFideId "2103087"]
[WhiteElo "2153"]
[BlackElo "2176"]
[Result "0-1"]
[Round "10"]
[TimeControl "180+2"]
[Date "2023.04.11"]
[WhiteClock "0:00:13"]
[BlackClock "0:00:30"]

1. e4 {[%clk 0:02:55]}  c5 {[%clk 0:03:00]} 2. d4 {[%clk 0:02:53]}  cxd4 {[%clk 0:02:59]} 3. Qxd4 {[%clk 0:02:54]}  Nc6 {[%clk 0:02:58]} 4. Qd3 {[%clk 0:02:55]}  Nf6 {[%clk 0:02:57]} 5. Nc3 {[%clk 0:02:55]}  d6 {[%clk 0:02:56]} 6. Nf3 {[%clk 0:02:56]}  e6 {[%clk 0:02:55]} 7. Be2 {[%clk 0:02:56]}  Be7 {[%clk 0:02:55]} 8. Bf4 {[%clk 0:02:53]}  O-O {[%clk 0:02:53]} 9. O-O-O {[%clk 0:02:52]}  e5 {[%clk 0:02:46]} 10. Bg5 {[%clk 0:02:52]}  Be6 {[%clk 0:02:45]} 11. Bxf6 {[%clk 0:02:51]}  Bxf6 {[%clk 0:02:45]} 12. Qxd6 {[%clk 0:02:51]}  Qa5 {[%clk 0:02:46]} 13. Qa3 {[%clk 0:02:43]}  Qxa3 {[%clk 0:02:44]} 14. bxa3 {[%clk 0:02:43]}  Rac8 {[%clk 0:02:42]} 15. Nd5 {[%clk 0:02:40]}  Na5 {[%clk 0:02:22]} 16. Kb2 {[%clk 0:02:12]}  Nc4+ {[%clk 0:02:22]} 17. Bxc4 {[%clk 0:02:12]}  Rxc4 {[%clk 0:02:22]} 18. Nxf6+ {[%clk 0:01:53]}  gxf6 {[%clk 0:02:19]} 19. Nd2 {[%clk 0:01:50]}  Rc6 {[%clk 0:02:14]} 20. f3 {[%clk 0:01:43]}  Rfc8 {[%clk 0:02:15]} 21. Rc1 {[%clk 0:01:40]}  Rb6+ {[%clk 0:02:06]} 22. Nb3 {[%clk 0:01:16]}  a5 {[%clk 0:02:06]} 23. a4 {[%clk 0:01:17]}  Rb4 {[%clk 0:02:05]} 24. Rhd1 {[%clk 0:00:57]}  Rxa4 {[%clk 0:02:04]} 25. Rd6 {[%clk 0:00:57]}  Rb4 {[%clk 0:02:00]} 26. c3 {[%clk 0:00:50]}  Rb5 {[%clk 0:01:49]} 27. Kc2 {[%clk 0:00:50]}  a4 {[%clk 0:01:33]} 28. Nd2 {[%clk 0:00:50]}  Bxa2 {[%clk 0:01:24]} 29. Rxf6 {[%clk 0:00:51]}  a3 {[%clk 0:01:21]} 30. Rd6 {[%clk 0:00:22]}  Rb2+ {[%clk 0:01:21]} 31. Kd3 {[%clk 0:00:22]}  Be6 {[%clk 0:01:09]} 32. Ra1 {[%clk 0:00:22]}  a2 {[%clk 0:01:08]} 33. g4 {[%clk 0:00:23]}  Ra8 {[%clk 0:01:02]} 34. h4 {[%clk 0:00:21]}  Kf8 {[%clk 0:00:45]} 35. Nc4 {[%clk 0:00:20]}  Bxc4+ {[%clk 0:00:30]} 36. Kxc4 {[%clk 0:00:21]}  Rb1 {[%clk 0:00:30]} 37. Rd1 {[%clk 0:00:12]}  Rxd1 {[%clk 0:00:29]} 38. Rxd1 {[%clk 0:00:13]}  a1=Q {[%clk 0:00:30]} 0-1


[Site "https://www.chess.com"]

[Event "Titled Tuesday Blitz April 11 Late 2023"]
[White "Romero Ruscalleda, Josep"]
[Black "Perez Rodriguez, Jennifer"]
[WhiteFideId "2231859"]
[BlackFideId "3507831"]
[WhiteElo "2183"]
[BlackElo "2116"]
[Result "0-1"]
[Round "10"]
[TimeControl "180+2"]
[Date "2023.04.11"]
[WhiteClock "0:00:19"]
[BlackClock "0:00:40"]

1. e4 {[%clk 0:03:00]}  e5 {[%clk 0:02:58]} 2. Nf3 {[%clk 0:03:00]}  Nc6 {[%clk 0:02:58]} 3. Bc4 {[%clk 0:03:00]}  Bc5 {[%clk 0:02:55]} 4. c3 {[%clk 0:02:59]}  Nf6 {[%clk 0:02:55]} 5. d3 {[%clk 0:03:00]}  d6 {[%clk 0:02:53]} 6. O-O {[%clk 0:02:59]}  a5 {[%clk 0:02:50]} 7. a4 {[%clk 0:02:56]}  O-O {[%clk 0:02:48]} 8. h3 {[%clk 0:02:48]}  h6 {[%clk 0:02:47]} 9. d4 {[%clk 0:02:30]}  Bb6 {[%clk 0:02:42]} 10. Re1 {[%clk 0:02:26]}  Re8 {[%clk 0:02:41]} 11. dxe5 {[%clk 0:02:15]}  dxe5 {[%clk 0:02:39]} 12. Qe2 {[%clk 0:02:11]}  Nh5 {[%clk 0:02:29]} 13. Ng5 {[%clk 0:01:51]}  hxg5 {[%clk 0:02:13]} 14. Qxh5 {[%clk 0:01:50]}  Qf6 {[%clk 0:02:13]} 15. Be3 {[%clk 0:01:41]}  Bxe3 {[%clk 0:02:09]} 16. Rxe3 {[%clk 0:01:41]}  Be6 {[%clk 0:02:01]} 17. Nd2 {[%clk 0:01:20]}  Rad8 {[%clk 0:01:59]} 18. Bxe6 {[%clk 0:01:18]}  Rxe6 {[%clk 0:01:54]} 19. Nf3 {[%clk 0:01:16]}  Qh6 {[%clk 0:01:25]} 20. Qxg5 {[%clk 0:01:14]}  Qxg5 {[%clk 0:01:13]} 21. Nxg5 {[%clk 0:01:14]}  Red6 {[%clk 0:01:09]} 22. Nf3 {[%clk 0:01:09]}  f6 {[%clk 0:01:09]} 23. Re2 {[%clk 0:01:03]}  Rd1+ {[%clk 0:01:05]} 24. Rxd1 {[%clk 0:01:02]}  Rxd1+ {[%clk 0:01:06]} 25. Re1 {[%clk 0:00:58]}  Rd6 {[%clk 0:01:02]} 26. Kf1 {[%clk 0:00:58]}  Nd8 {[%clk 0:00:57]} 27. Ke2 {[%clk 0:00:45]}  Ne6 {[%clk 0:00:57]} 28. g3 {[%clk 0:00:22]}  Nc5 {[%clk 0:00:55]} 29. Nd2 {[%clk 0:00:20]}  Nxa4 {[%clk 0:00:48]} 30. Ra1 {[%clk 0:00:20]}  Nxb2 {[%clk 0:00:43]} 31. Rxa5 {[%clk 0:00:19]}  Rxd2+ {[%clk 0:00:41]} 32. Kxd2 {[%clk 0:00:19]}  Nc4+ {[%clk 0:00:41]} 33. Kd3 {[%clk 0:00:20]}  Nxa5 {[%clk 0:00:42]} 34. f4 {[%clk 0:00:19]}  Kf7 {[%clk 0:00:41]} 35. fxe5 {[%clk 0:00:19]}  fxe5 {[%clk 0:00:41]} 36. g4 {[%clk 0:00:19]}  g5 {[%clk 0:00:40]} 0-1


[Site "https://www.chess.com"]

[Event "Titled Tuesday Blitz April 11 Late 2023"]
[White "Cigan, Jason"]
[Black "Moreira, Ronaldo Alonso"]
[WhiteFideId "2064022"]
[BlackFideId "2110547"]
[WhiteElo "2000"]
[BlackElo "2037"]
[Result "0-1"]
[Round "10"]
[TimeControl "180+2"]
[Date "2023.04.11"]
[WhiteClock "0:00:03"]
[BlackClock "0:00:19"]

1. e4 {[%clk 0:02:57]}  e6 {[%clk 0:02:58]} 2. d4 {[%clk 0:02:57]}  d5 {[%clk 0:02:59]} 3. Nc3 {[%clk 0:02:58]}  Nf6 {[%clk 0:02:58]} 4. e5 {[%clk 0:02:58]}  Nfd7 {[%clk 0:02:58]} 5. f4 {[%clk 0:02:58]}  c5 {[%clk 0:02:59]} 6. Nf3 {[%clk 0:02:59]}  Nc6 {[%clk 0:02:59]} 7. Be3 {[%clk 0:02:59]}  Qb6 {[%clk 0:03:00]} 8. Na4 {[%clk 0:02:58]}  Qa5+ {[%clk 0:03:00]} 9. c3 {[%clk 0:02:59]}  c4 {[%clk 0:03:00]} 10. b4 {[%clk 0:02:51]}  Nxb4 {[%clk 0:03:01]} 11. cxb4 {[%clk 0:02:51]}  Bxb4+ {[%clk 0:03:01]} 12. Kf2 {[%clk 0:02:06]}  b5 {[%clk 0:03:01]} 13. Nb2 {[%clk 0:02:05]}  Be7 {[%clk 0:02:58]} 14. h4 {[%clk 0:01:56]}  Nb8 {[%clk 0:02:56]} 15. Qc2 {[%clk 0:01:44]}  Nc6 {[%clk 0:02:46]} 16. h5 {[%clk 0:01:44]}  Bd7 {[%clk 0:02:31]} 17. g4 {[%clk 0:01:41]}  b4 {[%clk 0:02:20]} 18. Bh3 {[%clk 0:01:29]}  Qb5 {[%clk 0:02:14]} 19. f5 {[%clk 0:01:20]}  a5 {[%clk 0:02:05]} 20. h6 {[%clk 0:01:17]}  g6 {[%clk 0:02:01]} 21. f6 {[%clk 0:00:57]}  Bd8 {[%clk 0:01:52]} 22. Na4 {[%clk 0:00:52]}  Nxd4 {[%clk 0:01:36]} 23. Nxd4 {[%clk 0:00:45]}  Qxa4 {[%clk 0:01:36]} 24. Qxa4 {[%clk 0:00:44]}  Bxa4 {[%clk 0:01:37]} 25. Bf1 {[%clk 0:00:32]}  O-O {[%clk 0:01:14]} 26. Be2 {[%clk 0:00:32]}  Bb6 {[%clk 0:01:13]} 27. Bd1 {[%clk 0:00:28]}  Bxd1 {[%clk 0:01:10]} 28. Rhxd1 {[%clk 0:00:27]}  Bxd4 {[%clk 0:01:09]} 29. Bxd4 {[%clk 0:00:27]}  Rfc8 {[%clk 0:01:09]} 30. Ke3 {[%clk 0:00:25]}  c3 {[%clk 0:01:08]} 31. Kd3 {[%clk 0:00:24]}  Rc4 {[%clk 0:01:08]} 32. Rdc1 {[%clk 0:00:20]}  Rac8 {[%clk 0:01:08]} 33. g5 {[%clk 0:00:17]}  Kf8 {[%clk 0:01:08]} 34. Rab1 {[%clk 0:00:17]}  Ke8 {[%clk 0:01:07]} 35. a3 {[%clk 0:00:16]}  Kd7 {[%clk 0:01:03]} 36. axb4 {[%clk 0:00:15]}  axb4 {[%clk 0:01:03]} 37. Ra1 {[%clk 0:00:15]}  Kc6 {[%clk 0:00:48]} 38. Ra7 {[%clk 0:00:14]}  Rc7 {[%clk 0:00:45]} 39. Rca1 {[%clk 0:00:13]}  Rxa7 {[%clk 0:00:35]} 40. Rxa7 {[%clk 0:00:13]}  c2 {[%clk 0:00:35]} 41. Bb2 {[%clk 0:00:10]}  c1=Q {[%clk 0:00:21]} 42. Bxc1 {[%clk 0:00:09]}  Rxc1 {[%clk 0:00:21]} 43. Rxf7 {[%clk 0:00:09]}  b3 {[%clk 0:00:22]} 44. Rf8 {[%clk 0:00:05]}  b2 {[%clk 0:00:19]} 45. Rc8+ {[%clk 0:00:06]}  Kd7 {[%clk 0:00:19]} 46. Rb8 {[%clk 0:00:05]}  b1=Q+ {[%clk 0:00:19]} 47. Rxb1 {[%clk 0:00:03]}  Rxb1 {[%clk 0:00:19]} 0-1


[Site "https://www.chess.com"]

[Event "Titled Tuesday Blitz April 11 Late 2023"]
[White "Hartikainen, Jarmo"]
[Black "Antonova, Nadezhda"]
[WhiteFideId "503134"]
[BlackFideId "14700182"]
[WhiteElo "2108"]
[BlackElo "1765"]
[Result "0-1"]
[Round "10"]
[TimeControl "180+2"]
[Date "2023.04.11"]
[WhiteClock "0:00:06"]
[BlackClock "0:00:05"]

1. e4 {[%clk 0:03:00]}  c6 {[%clk 0:01:29]} 2. d4 {[%clk 0:02:58]}  d5 {[%clk 0:01:29]} 3. Nc3 {[%clk 0:02:59]}  dxe4 {[%clk 0:01:29]} 4. Nxe4 {[%clk 0:03:00]}  Bf5 {[%clk 0:01:29]} 5. Ng3 {[%clk 0:02:59]}  Bg6 {[%clk 0:01:29]} 6. h4 {[%clk 0:03:00]}  h6 {[%clk 0:01:27]} 7. Bc4 {[%clk 0:03:00]}  e6 {[%clk 0:01:23]} 8. N1e2 {[%clk 0:03:00]}  Bd6 {[%clk 0:01:19]} 9. Nf4 {[%clk 0:02:59]}  Bh7 {[%clk 0:01:19]} 10. Ngh5 {[%clk 0:02:54]}  Kf8 {[%clk 0:01:14]} 11. Be3 {[%clk 0:02:34]}  Nf6 {[%clk 0:01:13]} 12. Nxf6 {[%clk 0:01:57]}  Qxf6 {[%clk 0:01:11]} 13. Qd2 {[%clk 0:01:42]}  Nd7 {[%clk 0:00:57]} 14. O-O-O {[%clk 0:01:39]}  Nb6 {[%clk 0:00:57]} 15. Bd3 {[%clk 0:01:20]}  Bxd3 {[%clk 0:00:56]} 16. Nxd3 {[%clk 0:01:11]}  Nc4 {[%clk 0:00:55]} 17. Qe2 {[%clk 0:01:04]}  b5 {[%clk 0:00:43]} 18. g4 {[%clk 0:00:59]}  Ke7 {[%clk 0:00:35]} 19. g5 {[%clk 0:00:55]}  Qf5 {[%clk 0:00:34]} 20. gxh6 {[%clk 0:00:42]}  Nxe3 {[%clk 0:00:28]} 21. fxe3 {[%clk 0:00:39]}  Rxh6 {[%clk 0:00:28]} 22. Rdf1 {[%clk 0:00:37]}  Qh5 {[%clk 0:00:27]} 23. Qf2 {[%clk 0:00:34]}  Rf6 {[%clk 0:00:26]} 24. Qg2 {[%clk 0:00:34]}  Qh6 {[%clk 0:00:23]} 25. Qe4 {[%clk 0:00:26]}  Rh8 {[%clk 0:00:20]} 26. Nf4 {[%clk 0:00:17]}  Kd7 {[%clk 0:00:13]} 27. a3 {[%clk 0:00:14]}  a6 {[%clk 0:00:12]} 28. Kb1 {[%clk 0:00:14]}  Kc7 {[%clk 0:00:12]} 29. Ka2 {[%clk 0:00:14]}  Kb7 {[%clk 0:00:10]} 30. c4 {[%clk 0:00:12]}  Rc8 {[%clk 0:00:09]} 31. Qc2 {[%clk 0:00:12]}  Bxf4 {[%clk 0:00:08]} 32. exf4 {[%clk 0:00:12]}  Rxf4 {[%clk 0:00:08]} 33. Rxf4 {[%clk 0:00:11]}  Qxf4 {[%clk 0:00:08]} 34. cxb5 {[%clk 0:00:10]}  axb5 {[%clk 0:00:08]} 35. Qg2 {[%clk 0:00:09]}  Qxd4 {[%clk 0:00:08]} 36. h5 {[%clk 0:00:08]}  Qd5+ {[%clk 0:00:07]} 37. Qxd5 {[%clk 0:00:07]}  cxd5 {[%clk 0:00:07]} 38. h6 {[%clk 0:00:08]}  gxh6 {[%clk 0:00:07]} 39. Rxh6 {[%clk 0:00:09]}  Rc7 {[%clk 0:00:08]} 40. Rh7 {[%clk 0:00:09]}  Kc6 {[%clk 0:00:07]} 41. Kb3 {[%clk 0:00:10]}  Kc5 {[%clk 0:00:07]} 42. Rh4 {[%clk 0:00:09]}  Re7 {[%clk 0:00:07]} 43. Kc3 {[%clk 0:00:09]}  f5 {[%clk 0:00:07]} 44. Kd2 {[%clk 0:00:09]}  e5 {[%clk 0:00:08]} 45. b4+ {[%clk 0:00:09]}  Kd6 {[%clk 0:00:07]} 46. Rh6+ {[%clk 0:00:10]}  Re6 {[%clk 0:00:07]} 47. Rh5 {[%clk 0:00:11]}  f4 {[%clk 0:00:07]} 48. Rh8 {[%clk 0:00:11]}  e4 {[%clk 0:00:08]} 49. Rd8+ {[%clk 0:00:10]}  Kc6 {[%clk 0:00:08]} 50. Rc8+ {[%clk 0:00:10]}  Kb7 {[%clk 0:00:07]} 51. Rf8 {[%clk 0:00:10]}  f3 {[%clk 0:00:07]} 52. Ke3 {[%clk 0:00:10]}  Rd6 {[%clk 0:00:07]} 53. Rf7+ {[%clk 0:00:09]}  Kb6 {[%clk 0:00:07]} 54. Kd4 {[%clk 0:00:09]}  Re6 {[%clk 0:00:06]} 55. Ke3 {[%clk 0:00:09]}  Rd6 {[%clk 0:00:06]} 56. Kd4 {[%clk 0:00:09]}  Kc6 {[%clk 0:00:06]} 57. Rf8 {[%clk 0:00:09]}  Kc7 {[%clk 0:00:06]} 58. Rf7+ {[%clk 0:00:09]}  Kb6 {[%clk 0:00:06]} 59. Rf5 {[%clk 0:00:09]}  Kc6 {[%clk 0:00:06]} 60. Rf8 {[%clk 0:00:09]}  Re6 {[%clk 0:00:05]} 61. Ke3 {[%clk 0:00:08]}  Kd6 {[%clk 0:00:05]} 62. Rd8+ {[%clk 0:00:08]}  Ke5 {[%clk 0:00:05]} 63. Rh8 {[%clk 0:00:07]}  d4+ {[%clk 0:00:06]} 64. Kf2 {[%clk 0:00:08]}  e3+ {[%clk 0:00:05]} 65. Kxf3 {[%clk 0:00:07]}  Rf6+ {[%clk 0:00:05]} 66. Ke2 {[%clk 0:00:07]}  Rf2+ {[%clk 0:00:05]} 67. Kd3 {[%clk 0:00:06]}  Rd2# {[%clk 0:00:05]} 0-1


[Site "https://www.chess.com"]

[Event "Titled Tuesday Blitz April 11 Late 2023"]
[White "Caruana, Fabiano"]
[Black "Kramnik, Vladimir"]
[WhiteFideId "2020009"]
[BlackFideId "4101588"]
[WhiteElo "2837"]
[BlackElo "2712"]
[Result "1-0"]
[Round "11"]
[TimeControl "180+2"]
[Date "2023.04.11"]
[WhiteClock "0:00:18"]
[BlackClock "0:00:02"]

1. e4 {[%clk 0:03:00]}  e6 {[%clk 0:02:59]} 2. d4 {[%clk 0:03:00]}  d5 {[%clk 0:02:59]} 3. exd5 {[%clk 0:03:00]}  exd5 {[%clk 0:02:59]} 4. Bd3 {[%clk 0:03:01]}  Bd6 {[%clk 0:02:57]} 5. Nf3 {[%clk 0:03:01]}  Ne7 {[%clk 0:02:56]} 6. O-O {[%clk 0:03:01]}  O-O {[%clk 0:02:56]} 7. Re1 {[%clk 0:02:59]}  Bf5 {[%clk 0:02:50]} 8. Bxf5 {[%clk 0:02:57]}  Nxf5 {[%clk 0:02:50]} 9. Qd3 {[%clk 0:02:58]}  Qd7 {[%clk 0:02:48]} 10. Nc3 {[%clk 0:02:51]}  Nc6 {[%clk 0:02:40]} 11. Nxd5 {[%clk 0:02:35]}  Bxh2+ {[%clk 0:02:38]} 12. Kxh2 {[%clk 0:02:36]}  Qxd5 {[%clk 0:02:37]} 13. c3 {[%clk 0:02:37]}  Qd6+ {[%clk 0:02:19]} 14. Kg1 {[%clk 0:02:34]}  g6 {[%clk 0:02:13]} 15. Ng5 {[%clk 0:02:26]}  Kg7 {[%clk 0:01:40]} 16. Ne4 {[%clk 0:02:23]}  Qd5 {[%clk 0:01:38]} 17. Bf4 {[%clk 0:02:18]}  Rae8 {[%clk 0:01:33]} 18. Re2 {[%clk 0:01:57]}  Re7 {[%clk 0:01:23]} 19. Rae1 {[%clk 0:01:56]}  f6 {[%clk 0:01:13]} 20. Ng3 {[%clk 0:01:52]}  Rxe2 {[%clk 0:00:45]} 21. Nxf5+ {[%clk 0:01:51]}  gxf5 {[%clk 0:00:44]} 22. Rxe2 {[%clk 0:01:49]}  Kh8 {[%clk 0:00:34]} 23. b3 {[%clk 0:01:21]}  Qd7 {[%clk 0:00:29]} 24. Qe3 {[%clk 0:01:13]}  Rf7 {[%clk 0:00:27]} 25. Qe8+ {[%clk 0:01:10]}  Kg7 {[%clk 0:00:25]} 26. Re3 {[%clk 0:01:08]}  Qxe8 {[%clk 0:00:24]} 27. Rxe8 {[%clk 0:01:09]}  Ne7 {[%clk 0:00:23]} 28. c4 {[%clk 0:01:01]}  Ng6 {[%clk 0:00:23]} 29. Bd2 {[%clk 0:01:00]}  Rd7 {[%clk 0:00:19]} 30. Bc3 {[%clk 0:00:58]}  c6 {[%clk 0:00:19]} 31. f3 {[%clk 0:00:54]}  Kf7 {[%clk 0:00:18]} 32. Re3 {[%clk 0:00:49]}  Nf4 {[%clk 0:00:17]} 33. Kf2 {[%clk 0:00:49]}  Ne6 {[%clk 0:00:17]} 34. Rd3 {[%clk 0:00:49]}  Nf4 {[%clk 0:00:16]} 35. Re3 {[%clk 0:00:49]}  b5 {[%clk 0:00:16]} 36. g3 {[%clk 0:00:31]}  Ne6 {[%clk 0:00:15]} 37. Rd3 {[%clk 0:00:32]}  bxc4 {[%clk 0:00:15]} 38. bxc4 {[%clk 0:00:33]}  Nc5 {[%clk 0:00:14]} 39. Rd2 {[%clk 0:00:32]}  Na4 {[%clk 0:00:14]} 40. Ba5 {[%clk 0:00:28]}  Rb7 {[%clk 0:00:11]} 41. d5 {[%clk 0:00:27]}  cxd5 {[%clk 0:00:11]} 42. cxd5 {[%clk 0:00:28]}  Ke7 {[%clk 0:00:11]} 43. a3 {[%clk 0:00:26]}  Kd7 {[%clk 0:00:10]} 44. Bb4 {[%clk 0:00:26]}  Nb6 {[%clk 0:00:09]} 45. Rd4 {[%clk 0:00:24]}  Nc8 {[%clk 0:00:07]} 46. Rh4 {[%clk 0:00:23]}  Ke8 {[%clk 0:00:07]} 47. Ke3 {[%clk 0:00:23]}  a5 {[%clk 0:00:06]} 48. Bxa5 {[%clk 0:00:20]}  Rb3+ {[%clk 0:00:06]} 49. Kf4 {[%clk 0:00:20]}  Rxa3 {[%clk 0:00:06]} 50. Bb4 {[%clk 0:00:19]}  Ra4 {[%clk 0:00:05]} 51. Kxf5 {[%clk 0:00:20]}  Kf7 {[%clk 0:00:02]} 52. Rxh7+ {[%clk 0:00:19]}  Kg8 {[%clk 0:00:03]} 53. Rb7 {[%clk 0:00:19]}  Kh8 {[%clk 0:00:02]} 54. Kg6 {[%clk 0:00:18]} 1-0


[Site "https://www.chess.com"]

[Event "Titled Tuesday Blitz April 11 Late 2023"]
[White "Naroditsky, Daniel"]
[Black "Hakobyan, Aram"]
[WhiteFideId "2026961"]
[BlackFideId "13306677"]
[WhiteElo "2633"]
[BlackElo "2584"]
[Result "1/2-1/2"]
[Round "11"]
[TimeControl "180+2"]
[Date "2023.04.11"]
[WhiteClock "0:00:20"]
[BlackClock "0:00:17"]

1. d4 {[%clk 0:03:00]}  Nf6 {[%clk 0:02:54]} 2. Nc3 {[%clk 0:03:00]}  d5 {[%clk 0:02:54]} 3. Bf4 {[%clk 0:03:01]}  c5 {[%clk 0:02:55]} 4. e4 {[%clk 0:03:01]}  Nxe4 {[%clk 0:02:55]} 5. Nxe4 {[%clk 0:03:02]}  dxe4 {[%clk 0:02:56]} 6. dxc5 {[%clk 0:03:03]}  Qa5+ {[%clk 0:02:56]} 7. c3 {[%clk 0:03:03]}  Qxc5 {[%clk 0:02:57]} 8. Qa4+ {[%clk 0:03:04]}  Nc6 {[%clk 0:02:57]} 9. Qxe4 {[%clk 0:03:05]}  g6 {[%clk 0:02:57]} 10. Nf3 {[%clk 0:03:05]}  Bg7 {[%clk 0:02:57]} 11. Rd1 {[%clk 0:03:06]}  Bf5 {[%clk 0:02:50]} 12. Qa4 {[%clk 0:03:03]}  O-O {[%clk 0:02:28]} 13. Be3 {[%clk 0:03:03]}  Qa5 {[%clk 0:02:28]} 14. Bb5 {[%clk 0:02:47]}  Qxa4 {[%clk 0:02:21]} 15. Bxa4 {[%clk 0:02:48]}  Be6 {[%clk 0:02:20]} 16. Bxc6 {[%clk 0:02:13]}  bxc6 {[%clk 0:02:21]} 17. O-O {[%clk 0:02:08]}  Bxa2 {[%clk 0:02:17]} 18. Rd7 {[%clk 0:02:09]}  a5 {[%clk 0:02:05]} 19. Ra1 {[%clk 0:01:53]}  Be6 {[%clk 0:01:59]} 20. Rxe7 {[%clk 0:01:53]}  Rfb8 {[%clk 0:02:00]} 21. Bc1 {[%clk 0:01:40]}  a4 {[%clk 0:01:52]} 22. Nd4 {[%clk 0:01:28]}  Bd5 {[%clk 0:01:52]} 23. Re2 {[%clk 0:01:16]}  c5 {[%clk 0:01:44]} 24. Nc2 {[%clk 0:01:12]}  Bb3 {[%clk 0:01:38]} 25. Na3 {[%clk 0:01:08]}  Re8 {[%clk 0:01:27]} 26. Be3 {[%clk 0:01:09]}  Rad8 {[%clk 0:01:21]} 27. h3 {[%clk 0:00:57]}  f5 {[%clk 0:01:20]} 28. Ree1 {[%clk 0:00:57]}  Bf8 {[%clk 0:01:15]} 29. Nb5 {[%clk 0:00:55]}  Rd7 {[%clk 0:01:11]} 30. Bf4 {[%clk 0:00:53]}  Rxe1+ {[%clk 0:01:11]} 31. Rxe1 {[%clk 0:00:54]}  Kf7 {[%clk 0:01:11]} 32. f3 {[%clk 0:00:49]}  Be7 {[%clk 0:00:54]} 33. Kf2 {[%clk 0:00:45]}  g5 {[%clk 0:00:52]} 34. Bc1 {[%clk 0:00:45]}  f4 {[%clk 0:00:47]} 35. h4 {[%clk 0:00:42]}  h6 {[%clk 0:00:48]} 36. hxg5 {[%clk 0:00:42]}  hxg5 {[%clk 0:00:49]} 37. g3 {[%clk 0:00:36]}  fxg3+ {[%clk 0:00:45]} 38. Kxg3 {[%clk 0:00:36]}  Kg6 {[%clk 0:00:45]} 39. Be3 {[%clk 0:00:32]}  Kf5 {[%clk 0:00:44]} 40. Kf2 {[%clk 0:00:26]}  Bc4 {[%clk 0:00:39]} 41. Na3 {[%clk 0:00:26]}  Bb3 {[%clk 0:00:37]} 42. Nb1 {[%clk 0:00:23]}  Ba2 {[%clk 0:00:28]} 43. Na3 {[%clk 0:00:21]}  Rb7 {[%clk 0:00:26]} 44. Re2 {[%clk 0:00:21]}  Bb3 {[%clk 0:00:20]} 45. Rd2 {[%clk 0:00:20]}  Ke6 {[%clk 0:00:16]} 46. Re2 {[%clk 0:00:19]}  Kf5 {[%clk 0:00:16]} 47. Rd2 {[%clk 0:00:20]}  Ke6 {[%clk 0:00:17]} 48. Re2 {[%clk 0:00:20]}  Kf5 {[%clk 0:00:17]} 1/2-1/2


[Site "https://www.chess.com"]

[Event "Titled Tuesday Blitz April 11 Late 2023"]
[White "Terry, Renato"]
[Black "Vachier-Lagrave, Maxime"]
[WhiteFideId "3803457"]
[BlackFideId "623539"]
[WhiteElo "2575"]
[BlackElo "2740"]
[Result "0-1"]
[Round "11"]
[TimeControl "180+2"]
[Date "2023.04.11"]
[WhiteClock "0:00:10"]
[BlackClock "0:01:40"]

1. Nf3 {[%clk 0:02:59]}  d5 {[%clk 0:02:59]} 2. d4 {[%clk 0:02:59]}  c6 {[%clk 0:02:59]} 3. c4 {[%clk 0:02:59]}  e6 {[%clk 0:02:58]} 4. e3 {[%clk 0:02:58]}  Nd7 {[%clk 0:02:58]} 5. b3 {[%clk 0:02:57]}  Bd6 {[%clk 0:02:58]} 6. Bb2 {[%clk 0:02:57]}  f5 {[%clk 0:02:57]} 7. Bd3 {[%clk 0:02:56]}  Ngf6 {[%clk 0:02:57]} 8. cxd5 {[%clk 0:02:55]}  Nxd5 {[%clk 0:02:53]} 9. O-O {[%clk 0:02:48]}  O-O {[%clk 0:02:53]} 10. Nbd2 {[%clk 0:02:47]}  b6 {[%clk 0:02:52]} 11. Re1 {[%clk 0:02:34]}  Bb7 {[%clk 0:02:51]} 12. e4 {[%clk 0:02:31]}  Nf4 {[%clk 0:02:50]} 13. Bf1 {[%clk 0:02:28]}  c5 {[%clk 0:02:50]} 14. exf5 {[%clk 0:02:05]}  Rxf5 {[%clk 0:02:46]} 15. g3 {[%clk 0:02:05]}  Qf6 {[%clk 0:02:41]} 16. dxc5 {[%clk 0:01:54]}  Qxb2 {[%clk 0:02:36]} 17. cxd6 {[%clk 0:01:54]}  Raf8 {[%clk 0:02:31]} 18. gxf4 {[%clk 0:01:50]}  Rxf4 {[%clk 0:02:32]} 19. Bg2 {[%clk 0:01:45]}  Rg4 {[%clk 0:02:26]} 20. h3 {[%clk 0:01:16]}  Rg6 {[%clk 0:02:23]} 21. Ne4 {[%clk 0:01:08]}  Ne5 {[%clk 0:02:14]} 22. Kh1 {[%clk 0:00:19]}  Rxg2 {[%clk 0:02:04]} 23. Kxg2 {[%clk 0:00:18]}  Nxf3 {[%clk 0:02:04]} 24. Re2 {[%clk 0:00:12]}  Qe5 {[%clk 0:02:03]} 25. Ng3 {[%clk 0:00:11]}  Nd4+ {[%clk 0:02:01]} 26. Kf1 {[%clk 0:00:11]}  Nxe2 {[%clk 0:01:52]} 27. Nxe2 {[%clk 0:00:11]}  Qe3 {[%clk 0:01:47]} 28. Ke1 {[%clk 0:00:09]}  Qxf2+ {[%clk 0:01:42]} 29. Kd2 {[%clk 0:00:10]}  Rd8 {[%clk 0:01:42]} 30. Qe1 {[%clk 0:00:09]}  Rxd6+ {[%clk 0:01:41]} 31. Kc3 {[%clk 0:00:10]}  Qe3+ {[%clk 0:01:41]} 32. Kb4 {[%clk 0:00:10]}  Qc5+ {[%clk 0:01:40]} 0-1


[Site "https://www.chess.com"]